fUSD/lending_fUSD_20240117
["ID","MTS","AMOUNT","RATE_DAILY","PERIOD"]
[311973349,1705523475209,-1002.3,0.00022739,2]
[311973350,1705523475219,-540.68,0.00022739,2]
[311973351,1705523475228,-585.07,0.00022739,2]
[311973352,1705523475238,-500.0,0.00022739,2]
[311973353,1705523475247,-500.0,0.00022739,2]
[311973354,1705523475257,-180.3,0.00022739,2]
[311973355,1705523475267,-500.0,0.00022739,2]
[311973356,1705523475277,-500.0,0.00022739,2]
[311973357,1705523475286,-500.0,0.00022739,2]
[311973358,1705523475295,-500.0,0.00022739,2]
[311973359,1705523475305,-500.0,0.00022739,2]
[311973360,1705523475315,-617.02,0.00022739,2]
[311973361,1705523475325,-1017.13,0.00022739,2]
[311973362,1705523475335,-557.46,0.00022739,2]
[311973363,1705523475345,-500.0,0.00022739,2]
[311973364,1705523475355,-500.0,0.00022739,2]
[311973365,1705523475366,-500.0,0.00022739,2]
[311973366,1705523475376,-1814.92,0.00022739,5]
[311973367,1705523475386,-500.0,0.00022739,2]
[311973368,1705523475396,-1364.4,0.00022739,2]
[311973369,1705523475406,-500.0,0.00022739,2]
[311973370,1705523475418,-1499.88,0.00022739,2]
[311973371,1705523475427,-908.83,0.00022739,2]
[311973372,1705523475438,-500.0,0.00022739,2]
[311973373,1705523475448,-519.56,0.00022739,2]
[311973374,1705523475458,-500.0,0.00022739,2]
[311973375,1705523475467,-571.81,0.00022739,2]
[311973376,1705523475477,-500.0,0.00022739,2]
[311973377,1705523475487,-500.0,0.00022739,2]
[311973378,1705523475496,-500.0,0.00022739,2]
[311973379,1705523475506,-500.0,0.00022739,2]
[311973380,1705523475516,-500.0,0.00022739,2]
[311973381,1705523475526,-500.0,0.00022739,2]
[311973382,1705523475536,-180.15,0.00022739,2]
[311973383,1705523475546,-500.0,0.00022739,2]
[311973384,1705523475556,-500.0,0.00022739,2]
[311973385,1705523475567,-500.0,0.00022739,2]
[311973386,1705523475576,-500.0,0.00022739,2]
[311973387,1705523475586,-500.0,0.00022739,5]
[311973388,1705523475596,-643.19,0.00022739,2]
[311973389,1705523475605,-150.0,0.0002274,2]
[311973390,1705523475615,-3220.34929161,0.00022745,2]
[311973391,1705523475624,-290.78253396,0.00022745,2]
[311973392,1705523475634,-224.57098569,0.00022745,2]
[311973393,1705523475644,-389.12675731,0.00022747,2]
[311973394,1705523475654,-150.0,0.00022754,2]
[311973395,1705523475665,-500.0,0.00022755,2]
[311973396,1705523475675,-150.0,0.00022758,2]
[311973397,1705523475685,-150.0,0.00022768,2]
[311973398,1705523475695,-200.0,0.0002277,2]
[311973399,1705523475705,-1500.0,0.00022771,2]
[311973400,1705523475715,-150.0,0.00022772,2]
[311973401,1705523475724,-150.0,0.00022772,2]
[311973402,1705523475734,-150.0,0.00022774,2]
[311973403,1705523475744,-150.0,0.00022774,2]
[311973404,1705523475753,-150.0,0.00022783,2]
[311973405,1705523475763,-150.0,0.00022785,2]
[311973406,1705523475773,-150.0,0.00022786,2]
[311973407,1705523475782,-150.0,0.00022789,2]
[311973408,1705523475792,-150.0,0.00022797,2]
[311973409,1705523475803,-1357.3,0.00022798,2]
[311973410,1705523475812,-150.0,0.00022799,2]
[311973411,1705523475822,-155.32243474,0.000228,2]
[311973412,1705523475832,-150.0,0.00022801,2]
[311973413,1705523475842,-150.0,0.00022802,2]
[311973414,1705523475851,-150.0,0.00022806,2]
[311973415,1705523475861,-150.0,0.0002281,2]
[311973416,1705523475871,-150.0,0.00022815,2]
[311973417,1705523475881,-500.0,0.00022815,2]
[311973418,1705523475890,-200.0,0.00022815,2]
[311973419,1705523475900,-800.0,0.00022815,2]
[311973420,1705523475912,-150.0,0.00022816,2]
[311973421,1705523475921,-500.0,0.00022816,2]
[311973422,1705523475931,-150.0,0.00022816,2]
[311973423,1705523475940,-150.0,0.00022819,2]
[311973424,1705523475949,-840.0,0.0002282,2]
[311973425,1705523475959,-150.0,0.0002282,2]
[311973426,1705523475968,-150.0,0.00022821,2]
[311973427,1705523475978,-150.0,0.00022822,2]
[311973428,1705523475988,-150.0,0.00022822,2]
[311973429,1705523475997,-150.0,0.00022823,2]
[311973430,1705523476008,-151.0,0.00022824,7]
[311973431,1705523476018,-151.0,0.00022824,7]
[311973432,1705523476029,-389.12675731,0.00022824,2]
[311973433,1705523476039,-150.0,0.00022824,2]
[311973434,1705523476048,-150.0,0.00022838,2]
[311973435,1705523476060,-150.0,0.00022839,2]
[311973436,1705523476070,-150.0,0.00022841,2]
[311973437,1705523476080,-150.0,0.00022843,2]
[311973438,1705523476091,-150.0,0.00022843,2]
[311973439,1705523476101,-150.0,0.00022845,2]
[311973440,1705523476111,-150.0,0.00022847,2]
[311973441,1705523476120,-1500.0,0.00022847,2]
[311973442,1705523476130,-150.0,0.00022847,2]
[311973443,1705523476140,-150.0,0.00022848,2]
[311973444,1705523476150,-150.0,0.0002285,2]
[311973445,1705523476161,-150.0,0.00022858,2]
[311973446,1705523476172,-150.0,0.00022863,2]
[311973447,1705523476184,-150.0,0.00022863,2]
[311973448,1705523476193,-150.0,0.00022865,2]
[311973449,1705523476203,-150.0,0.00022866,2]
[311973450,1705523476212,-152.71432783,0.00022867,2]
[311973451,1705523476221,-307.40170157,0.00022867,2]
[311973452,1705523476231,-1500.0,0.00022875,2]
[311973453,1705523476240,-150.0,0.00022876,2]
[311973454,1705523476250,-271.48297066,0.00022879,2]
[311973455,1705523476261,-7000.60766229,0.00022886,2]
[311973456,1705523476271,-150.0,0.00022887,2]
[311973457,1705523476282,-7000.60766218,0.00022887,2]
[311973458,1705523476292,-7000.60766218,0.00022889,2]
[311973459,1705523476302,-150.0,0.00022889,2]
[311973460,1705523476312,-150.0,0.00022889,2]
[311973461,1705523476323,-7000.60766218,0.0002289,2]
[311973462,1705523476333,-150.0,0.0002289,2]
[311973463,1705523476343,-1500.0,0.00022891,2]
[311973464,1705523476353,-7000.60766218,0.00022891,2]
[311973465,1705523476362,-7000.60766218,0.00022892,2]
[311973466,1705523476373,-150.0,0.00022893,2]
[311973467,1705523476384,-7000.60766218,0.00022894,2]
[311973468,1705523476394,-7000.60766218,0.00022895,2]
[311973469,1705523476404,-151.0,0.00022896,7]
[311973470,1705523476416,-214.031595,0.00022896,7]
[311973471,1705523476427,-151.0,0.00022896,7]
[311973472,1705523476437,-7000.60766218,0.00022896,2]
[311973473,1705523476447,-7000.60766218,0.00022897,2]
[311973474,1705523476456,-151.0,0.00022898,7]
[311973475,1705523476466,-290.688944,0.00022898,7]
[311973476,1705523476476,-151.0,0.00022898,7]
[311973477,1705523476486,-150.0,0.00022898,2]
[311973478,1705523476496,-151.0,0.00022898,7]
[311973479,1705523476506,-151.0,0.00022899,7]
[311973480,1705523476516,-7000.60766218,0.00022899,2]
[311973481,1705523476526,-500.0,0.000229,2]
[311973482,1705523476536,-1167.99761496,0.000229,2]
[311973483,1705523476546,-3220.34929161,0.000229,2]
[311973484,1705523476556,-389.12675731,0.000229,2]
[311973485,1705523476565,-7000.60766218,0.000229,2]
[311973486,1705523476576,-1500.0,0.000229,2]
[311973487,1705523476587,-165.92298531,0.000229,2]
[311973488,1705523476596,-290.78253396,0.000229,2]
[311973489,1705523476606,-224.57098569,0.000229,2]
[311973490,1705523476616,-152.36788734,0.000229,2]
[311973491,1705523476626,-152.36788715,0.000229,2]
[311973492,1705523476636,-152.36788715,0.000229,2]
[311973493,1705523476646,-152.36788715,0.000229,2]
[311973494,1705523476656,-152.36788715,0.000229,2]
[311973495,1705523476666,-1958.07769938,0.000229,2]
[311973496,1705523476677,-3834.96956328,0.000229,2]
[311973497,1705523476688,-15990.56782194,0.000229,2]
[311973498,1705523476698,-2835.27767488,0.000229,2]
[311973499,1705523476708,-317.25710299,0.000229,2]
[311973500,1705523476718,-157.34119209,0.000229,2]
[311973501,1705523476729,-150.0,0.00022902,2]
[311973502,1705523476738,-300.0,0.00022902,2]
[311973503,1705523476748,-749.43,0.00022903,2]
[311973504,1705523476758,-500.0,0.00022905,2]
[311973505,1705523476768,-296.57,0.00022905,2]
[311973506,1705523476778,-476.1501863,0.00022908,2]
[311973507,1705523476789,-150.0,0.00022909,2]
[311973508,1705523476799,-150.0,0.00022913,2]
[311973509,1705523476809,-261.76,0.00022914,2]
[311973510,1705523476819,-150.0,0.00022927,2]
[311973511,1705523476829,-164.55,0.00022946,2]
[311973512,1705523476839,-150.0,0.00022964,2]
[311973513,1705523476850,-150.0,0.00022966,2]
[311973514,1705523476859,-306.60094349,0.00022967,2]
[311973515,1705523476869,-1500.0,0.00022968,2]
[311973516,1705523476879,-500.0,0.00022979,2]
[311973517,1705523476889,-500.0,0.00022979,2]
[311973518,1705523476899,-500.0,0.00022979,2]
[311973519,1705523476909,-596.08,0.00022979,2]
[311973520,1705523476921,-1357.3,0.00022979,2]
[311973521,1705523476931,-1357.3,0.00022979,2]
[311973522,1705523476941,-474871.31276453,0.0002298,2]
[311973523,1705523476951,-151.0,0.0002298,7]
[311973524,1705523476961,-151.0,0.0002298,7]
[311973525,1705523477152,-151.0,0.0002298,7]
[311973526,1705523477162,-151.0,0.0002298,7]
[311973527,1705523477173,-151.0,0.0002298,7]
[311973528,1705523477184,-151.0,0.0002298,7]
[311973529,1705523477194,-151.0,0.0002298,7]
[311973530,1705523477204,-151.0,0.0002298,7]
[311973531,1705523477213,-151.0,0.0002298,7]
[311973532,1705523477224,-182.281348,0.0002298,7]
[311973533,1705523477234,-151.0,0.0002298,7]
[311973534,1705523477244,-151.0,0.0002298,7]
[311973535,1705523477253,-151.0,0.0002298,7]
[311973536,1705523477263,-151.0,0.0002298,7]
[311973537,1705523477273,-151.0,0.0002298,7]
[311973538,1705523477283,-151.0,0.0002298,7]
[311973539,1705523477292,-151.0,0.00022986,7]
[311973540,1705523477302,-150.0,0.00022992,2]
[311973541,1705523477311,-187.6803699,0.00022995,2]
[311973542,1705523477320,-179.10332562,0.00022995,2]
[311973543,1705523477329,-3503.3761178,0.00022995,2]
[311973544,1705523477338,-32580.0775435,0.00022995,2]
[311973545,1705523477348,-1278.2487295,0.00022995,2]
[311973546,1705523477357,-294.128578,0.00022995,7]
[311973547,1705523477367,-13163.45697308,0.00022997,2]
[311973548,1705523477377,-1357.3,0.00022998,2]
[311973549,1705523477386,-1357.3,0.00022998,2]
[311973550,1705523477396,-1357.3,0.00022998,2]
[311973551,1705523477405,-1357.3,0.00022998,2]
[311973552,1705523477417,-1357.31,0.00022998,2]
[311973553,1705523477427,-3295.67153385,0.00022999,2]
[311973554,1705523477436,-150.01,0.00022999,2]
[311973555,1705523477445,-235724.86682371,0.00022999,2]
[311973556,1705523477455,-150.0,0.00022999,2]
[311973557,1705523477464,-156.34,0.00022999,2]
[311973558,1705523477473,-1856306.47687979,0.00023,2]
[311973559,1705523477483,-725000.72641466,0.00023,2]
[311973560,1705523477893,-97485.87114306,0.00023,2]
[311973561,1705523477905,-87954.66389934,0.00023,2]
[311973562,1705523477923,-44466.08845832,0.00023,2]
[311973563,1705523477935,-1783.23346018,0.00023,2]
[311973564,1705523477957,-569.67,0.00021917,2]
[311973565,1705523477967,-368.39556108,0.00023,2]
[311973566,1705523477980,-424.54446131,0.00023,2]
[311973567,1705523478024,-453.8784,0.00023,2]
[311973568,1705523478035,-2433.79377245,0.00023,2]
[311973569,1705523478047,-2490.53561742,0.00023,2]
[311973570,1705523478072,-498.86026481,0.00023,2]
[311973571,1705523478083,-3264.94811256,0.00023,2]
[311973572,1705523478098,-54118.039635,0.00023,2]
[311973573,1705523478316,-42397.11166807,0.00023,2]
[311973574,1705523478328,-9012.78812622,0.00023,2]
[311973575,1705523478341,-10856.99756309,0.00023,2]
[311973576,1705523478352,-2318.44313815,0.00023,2]
[311973577,1705523478364,-6740.94450831,0.00023,2]
[311973578,1705523478375,-2159.10977032,0.00023,2]
[311973579,1705523478391,-2030.05024149,0.00023,2]
[311973580,1705523478670,-500.0,0.00021917,2]
[311973581,1705523478679,-500.0,0.00021917,2]
[311973582,1705523478689,-500.0,0.00021917,2]
[311973583,1705523478699,-569.67,0.00022191,2]
[311973584,1705523478709,-151.0,0.00022465,7]
[311973585,1705523478718,-280.89176454,0.00022465,2]
[311973586,1705523478730,-288.77823546,0.00022465,2]
[311973587,1705523478740,-569.67,0.00022739,2]
[311973588,1705523478749,-151.0,0.00022824,7]
[311973589,1705523478758,-27919.06244154,0.00023,2]
[311973590,1705523478769,-1632.92621345,0.00023,2]
[311973591,1705523478790,-151.0,0.0002298,7]
[311973592,1705523478799,-10352.44223134,0.00023,2]
[311973593,1705523478818,-327.24074744,0.00023,2]
[311973594,1705523478831,-602.37090284,0.00023,2]
[311973595,1705523479667,-463.75741641,0.00021917,2]
[311973596,1705523479679,-36.24258359,0.00021917,2]
[311973597,1705523479688,-500.0,0.00021917,2]
[311973598,1705523479698,-416.3,0.00022191,2]
[311973599,1705523479707,-151.0,0.00022465,7]
[311973600,1705523479717,-926.12688367,0.00022496,2]
[311973601,1705523479726,-949.83256512,0.00022496,2]
[311973602,1705523479735,-151.0,0.00022824,7]
[311973603,1705523479745,-96.37354281,0.00023,2]
[311973604,1705523479760,-288179.73861707,0.00023,2]
[311973605,1705523479776,-13194.56631859,0.00023,2]
[311973606,1705523480163,-21.68220229,0.00023,2]
[311973610,1705524433298,554.11,0.00018239,2]
[311973651,1705524633501,-202.6537974,0.00018566,2]
[311973654,1705524633511,-125.90839938,0.00018567,2]
[311973658,1705524633524,-377.93196297,0.00018567,2]
[311973661,1705524633533,-7103.57322363,0.00018567,5]
[311973664,1705524633543,-3126.06494598,0.00018568,2]
[311973667,1705524633553,-527.85681623,0.00018569,2]
[311973670,1705524633562,-158.99718648,0.0001857,2]
[311973672,1705524633571,-150.0,0.00018671,2]
[311973675,1705524633581,-150.0,0.00019091,2]
[311973678,1705524633590,-150.0,0.00019091,2]
[311973681,1705524633600,-150.0,0.00019233,2]
[311973683,1705524633609,-287.98726842,0.00019724,5]
[311973685,1705524633620,-150.0,0.00019968,2]
[311973687,1705524633629,-499.99,0.00019997,2]
[311973689,1705524633638,-158.99718647,0.00020013,2]
[311973691,1705524633647,-1349.27,0.00020075,2]
[311973693,1705524633657,-2705.0,0.00020076,2]
[311973695,1705524633666,-23870.0,0.00020091,2]
[311973697,1705524633675,-153.45,0.00020116,2]
[311973698,1705524633686,-240.44,0.00020157,2]
[311973699,1705524633695,-174.71,0.00020206,2]
[311973700,1705524633705,-157.39,0.00020239,2]
[311973701,1705524633714,-504.0,0.00020325,2]
[311973702,1705524633723,-153.45,0.0002034,2]
[311973703,1705524633732,-358.58,0.00020376,2]
[311973704,1705524633741,-762.26,0.00020449,2]
[311973705,1705524633751,-250.0,0.000205,2]
[311973706,1705524633760,-554.11,0.00020503,2]
[311973707,1705524633770,-2000.0,0.00020548,2]
[311973708,1705524633779,-160.47,0.00020563,2]
[311973709,1705524633788,-153.45,0.00020563,2]
[311973711,1705524633797,-116.02140982,0.00020771,2]
[311973714,1705524633815,-1055.63060946,0.00020771,2]
[311973715,1705524633831,-285.8344283,0.00020771,2]
[311973717,1705524633852,-1068.58774639,0.00020771,2]
[311973720,1705524633862,-1588.54393624,0.00020781,2]
[311973723,1705524633874,-1286.90008915,0.00020781,2]
[311973728,1705524633890,-372.04136223,0.00020781,2]
[311973731,1705524633902,-221.81461238,0.00020781,2]
[311973734,1705524633911,-153.45,0.00020787,2]
[311973737,1705524633921,-496.0,0.00020885,2]
[311973740,1705524633930,-153.45,0.0002101,2]
[311973743,1705524633939,-268.94338762,0.00021053,2]
[311973746,1705524633950,-1080.32661238,0.00021053,2]
[311973749,1705524633959,-150.25,0.00021232,2]
[311973751,1705524633968,-153.45,0.00021234,2]
[311973754,1705524633977,-159.7,0.00021256,2]
[311973757,1705524633986,-1140.46310599,0.0002138,3]
[311973760,1705524633995,-1505.48839698,0.0002138,2]
[311973763,1705524634005,-158.99718647,0.00021457,2]
[311973765,1705524634014,-153.45,0.00021457,2]
[311973766,1705524634023,-526.57440352,0.00021462,2]
[311973767,1705524634034,-1542.78234516,0.00021462,2]
[311973768,1705524634045,-591.42977514,0.00021462,2]
[311973769,1705524634057,-11941.59647618,0.00021462,2]
[311973770,1705524634066,-225.0,0.00021496,2]
[311973771,1705524634075,-1000.0,0.00021515,2]
[311973772,1705524634084,-32829.4134,0.00021515,2]
[311973773,1705524634093,-29112.9036,0.00021515,2]
[311973774,1705524634102,-150.25,0.00021515,2]
[311973775,1705524634110,-153.45,0.00021681,2]
[311973776,1705524634120,-398.8,0.00021757,2]
[311973777,1705524634129,-12431.29,0.00021757,2]
[311973778,1705524634138,-150.25,0.00021798,2]
[311973779,1705524634147,-466.1419,0.00021817,2]
[311973780,1705524634156,-185.08758899,0.00021817,2]
[311973781,1705524634165,-2619.02401601,0.00021817,2]
[311973782,1705524634174,-153.45,0.00021905,2]
[311973783,1705524634183,-155.0,0.00021915,2]
[311973784,1705524634192,-155.0,0.00021915,2]
[311973785,1705524634201,-192.14041212,0.00021916,2]
[311973786,1705524634210,-247.96718941,0.00021916,2]
[311973787,1705524634219,-277.1530606,0.00021916,2]
[311973788,1705524634228,-6429.79997434,0.00021916,2]
[311973789,1705524634236,-233.80434878,0.00021916,2]
[311973790,1705524634246,-315.01212787,0.00021916,2]
[311973791,1705524634255,-1278.13193774,0.00021916,2]
[311973792,1705524634265,-206.79487175,0.00021916,2]
[311973793,1705524634275,-156.84105949,0.00021916,2]
[311973794,1705524634284,-522.61370155,0.00021916,2]
[311973795,1705524634293,-150.0,0.00021916,2]
[311973796,1705524634302,-473.44876156,0.00021917,2]
[311973797,1705524634311,-229.89109149,0.00021917,2]
[311973798,1705524634321,-500.0,0.00021917,2]
[311973799,1705524634331,-501.50569853,0.00021917,2]
[311973800,1705524634341,-501.60344536,0.00021917,2]
[311973801,1705524634353,-500.0,0.00021917,2]
[311973802,1705524634363,-500.0,0.00021917,2]
[311973803,1705524634371,-500.0,0.00021917,2]
[311973804,1705524634380,-500.0,0.00021917,2]
[311973805,1705524634390,-504.98296119,0.00021917,2]
[311973806,1705524634402,-526.5,0.00021917,2]
[311973807,1705524634412,-500.0,0.00021917,2]
[311973808,1705524634421,-318.74,0.00021917,2]
[311973809,1705524634434,-500.0,0.00021917,2]
[311973810,1705524634444,-500.0,0.00021917,2]
[311973811,1705524634453,-500.0,0.00021917,2]
[311973812,1705524634463,-500.0,0.00021917,2]
[311973813,1705524634472,-500.0,0.00021917,2]
[311973814,1705524634481,-500.0,0.00021917,2]
[311973815,1705524634490,-500.0,0.00021917,2]
[311973816,1705524634499,-365.36,0.00021917,2]
[311973817,1705524634509,-500.0,0.00021917,2]
[311973818,1705524634518,-500.0,0.00021917,2]
[311973819,1705524634527,-551.53219362,0.00021917,2]
[311973820,1705524634536,-181.44,0.00021917,2]
[311973821,1705524634546,-500.0,0.00021917,2]
[311973822,1705524634555,-317.83223259,0.00021917,2]
[311973823,1705524634565,-194.21,0.00021917,2]
[311973824,1705524634574,-154.62,0.00021917,2]
[311973825,1705524634583,-506.76988891,0.00021917,2]
[311973826,1705524634593,-500.0,0.00021917,2]
[311973827,1705524634602,-500.0,0.00021917,2]
[311973828,1705524634612,-500.0,0.00021917,2]
[311973829,1705524634622,-500.0,0.00021917,2]
[311973830,1705524634631,-506.21998775,0.00021917,2]
[311973831,1705524634640,-500.0,0.00021917,2]
[311973832,1705524634650,-500.0,0.00021917,2]
[311973833,1705524634659,-500.0,0.00021917,2]
[311973834,1705524634669,-482.0970545,0.00021917,2]
[311973835,1705524634678,-500.0,0.00021917,2]
[311973836,1705524634688,-502.38958749,0.00021917,2]
[311973837,1705524634697,-500.0,0.00021917,2]
[311973838,1705524634707,-500.0,0.00021917,2]
[311973839,1705524634716,-258.88,0.00021917,2]
[311973840,1705524634726,-500.0,0.00021917,2]
[311973841,1705524634735,-500.0,0.00021917,2]
[311973842,1705524634744,-500.0,0.00021917,2]
[311973843,1705524634753,-500.0,0.00021917,2]
[311973844,1705524634762,-500.0,0.00021917,2]
[311973845,1705524634774,-500.0,0.00021917,2]
[311973846,1705524634783,-500.0,0.00021917,2]
[311973847,1705524634792,-500.0,0.00021917,2]
[311973848,1705524634802,-269.96379977,0.00021917,2]
[311973849,1705524634811,-500.0,0.00021917,2]
[311973850,1705524634821,-500.0,0.00021917,2]
[311973851,1705524634830,-500.0,0.00021917,2]
[311973852,1705524634839,-454.0976325,0.00021917,2]
[311973858,1705524638079,-151.27,0.00021473,2]
[311973859,1705524638089,-93.5623675,0.00021917,2]
[311973860,1705524638098,-78.168885,0.00021917,2]
[311973861,1705524638135,-251.60714365,0.00021917,2]
[311973862,1705524638352,-170.22397135,0.00021917,2]
[311973863,1705524638365,-500.0,0.00021917,2]
[311973864,1705524638374,-500.0,0.00021917,2]
[311973865,1705524638383,-500.0,0.00021917,2]
[311973866,1705524638393,-500.0,0.00021917,2]
[311973867,1705524638403,-500.0,0.00021917,2]
[311973869,1705524638412,-634.53,0.00021917,2]
[311973871,1705524638421,-500.0,0.00021917,2]
[311973873,1705524638431,-435.44026739,0.00021917,2]
[311973875,1705524638440,-536.77760315,0.00021917,2]
[311973877,1705524638450,-500.0,0.00021917,2]
[311973879,1705524638459,-500.0,0.00021917,2]
[311973881,1705524638468,-500.0,0.00021917,2]
[311973883,1705524638477,-500.0,0.00021917,2]
[311973884,1705524638486,-500.0,0.00021917,2]
[311973886,1705524638495,-500.0,0.00021917,2]
[311973889,1705524638505,-565.57185959,0.00021917,2]
[311973891,1705524638514,-500.0,0.00021917,2]
[311973893,1705524638524,-500.0,0.00021917,2]
[311973895,1705524638533,-500.0,0.00021917,2]
[311973898,1705524638542,-500.0,0.00021917,2]
[311973900,1705524638550,-613.72,0.00021917,2]
[311973904,1705524638560,-500.0,0.00021917,2]
[311973906,1705524638569,-500.0,0.00021917,2]
[311973909,1705524638578,-500.0,0.00021917,2]
[311973911,1705524638588,-500.0,0.00021917,2]
[311973913,1705524638597,-500.0,0.00021917,2]
[311973915,1705524638606,-500.0,0.00021917,2]
[311973917,1705524638617,-500.0,0.00021917,2]
[311973919,1705524638626,-500.0,0.00021917,2]
[311973920,1705524638635,-500.0,0.00021917,2]
[311973923,1705524638645,-500.0,0.00021917,2]
[311973925,1705524638654,-500.0,0.00021917,2]
[311973927,1705524638664,-201.92488765,0.00021917,2]
[311973929,1705524638674,-303.53914082,0.00021917,2]
[311973931,1705524638683,-500.0,0.00021917,2]
[311973933,1705524638693,-500.0,0.00021917,2]
[311973935,1705524638702,-500.0,0.00021917,2]
[311973937,1705524638711,-500.0,0.00021917,2]
[311973939,1705524638721,-544.18238133,0.00021917,2]
[311973941,1705524638730,-502.94655669,0.00021917,2]
[311973944,1705524638748,-500.0,0.00021917,2]
[311973946,1705524638760,-500.0,0.00021917,2]
[311973948,1705524638769,-505.85449921,0.00021917,2]
[311973950,1705524638779,-500.0,0.00021917,2]
[311973952,1705524638788,-185.40717605,0.00021917,2]
[311974141,1705524640645,-253.66500005,0.00021917,2]
[311974386,1705524643007,-60.9278239,0.00021917,2]
[311974387,1705524643016,-304.76466578,0.00021917,2]
[311974405,1705524643229,-195.23533422,0.00021917,2]
[311974407,1705524643238,-500.0,0.00021917,2]
[311974409,1705524643248,-500.0,0.00021917,2]
[311974411,1705524643257,-613.74647334,0.00021917,2]
[311974413,1705524643266,-531.83,0.00021917,2]
[311974415,1705524643276,-500.0,0.00021917,2]
[311974417,1705524643285,-500.0,0.00021917,2]
[311974419,1705524643294,-500.0,0.00021917,2]
[311974421,1705524643304,-500.0,0.00021917,2]
[311974423,1705524643314,-500.0,0.00021917,2]
[311974425,1705524643324,-501.55679725,0.00021917,2]
[311974427,1705524643333,-225.95,0.00021917,2]
[311974429,1705524643344,-500.0,0.00021917,2]
[311974431,1705524643356,-500.0,0.00021917,2]
[311974433,1705524643366,-502.79403779,0.00021917,2]
[311974435,1705524643377,-500.0,0.00021917,2]
[311974437,1705524643386,-500.0,0.00021917,2]
[311974440,1705524643397,-500.0,0.00021917,2]
[311974442,1705524643406,-507.1621843,0.00021917,2]
[311974444,1705524643415,-500.0,0.00021917,2]
[311974446,1705524643426,-500.0,0.00021917,2]
[311974448,1705524643435,-508.03386267,0.00021917,2]
[311974450,1705524643444,-500.0,0.00021917,2]
[311974452,1705524643453,-159.07,0.00021917,2]
[311974454,1705524643462,-578.44,0.00021917,2]
[311974456,1705524643472,-500.0,0.00021917,2]
[311974458,1705524643481,-20.19920257,0.00021917,2]
[311974592,1705524646306,-300.1034,0.00018569,2]
[311974593,1705524646316,-576.86260643,0.00020993,2]
[311974594,1705524646326,-3973.70399357,0.00021877,2]
[311974595,1705524833011,391.84940991,0.0001753,2]
[311974596,1705524877182,156.77355716,0.0001753,2]
[311974597,1705524889280,156.55860509,0.0001753,2]
[311974600,1705525351808,602.52,0.0001838,2]
[311974603,1705525797915,619.44,0.00018265,2]
[311974627,1705525835233,-588.94638895,0.00018585,2]
[311974628,1705525835244,-600.0,0.00018585,2]
[311974629,1705525835256,-763.87956881,0.00018585,2]
[311974630,1705525835267,-344.16414818,0.00018585,2]
[311974631,1705525835277,-1178.12872526,0.00018586,2]
[311974632,1705525835286,-364.01955034,0.00018586,2]
[311974633,1705525835296,-158.21378669,0.0001861,2]
[311974634,1705525835306,-205.0,0.0002,2]
[311974635,1705525835315,-560.56555998,0.00020041,2]
[311974636,1705525835325,-1000.0,0.0002014,2]
[311974637,1705525835335,-250.0,0.0002014,2]
[311974638,1705525835344,-761.83,0.00020144,2]
[311974639,1705525835354,-1585.79,0.00020165,2]
[311974640,1705525835365,-1642.48,0.00020182,2]
[311974641,1705525835374,-500.0,0.00020198,2]